bitfinex/quotes_ETHUSD_20250428
["timestamp","ask_amount","ask_price","bid_price","bid_amount"]
[1745862399136,0.10587761,1770.2,1770.0,6.19943434]
[1745862399332,5.401,1770.6,1770.2,5.64899166]
[1745862399557,6.8461,1770.6,1770.1,6.19920027]
[1745862400055,6.8461,1770.6,1770.2,5.64906985]
[1745862400756,6.8461,1770.6,1770.2,5.64891032]
[1745862401070,5.401,1770.6,1770.3,5.64860979]
[1745862401658,5.401,1770.6,1770.2,5.64887022]
[1745862402761,5.401,1770.6,1770.1,6.19921479]
[1745862402971,5.401,1770.6,1770.2,5.64894311]
[1745862403200,6.8461,1770.6,1770.2,6.16822497]
[1745862403513,6.8461,1770.6,1770.2,5.64894311]
[1745862403696,6.8461,1770.6,1770.1,5.64921479]
[1745862404191,6.8461,1770.6,1770.1,5.64919638]
[1745862404598,6.8461,1770.6,1770.2,0.51983454]
[1745862404810,0.306,1770.4,1770.2,0.51983454]
[1745862405172,0.306,1770.4,1769.9,5.64982716]
[1745862405700,0.306,1770.4,1770.0,0.52014451]
[1745862406399,0.306,1770.4,1770.1,0.52014451]
[1745862406823,6.05,1770.3,1770.1,0.52014451]
[1745862406971,6.005,1770.2,1770.1,0.52014451]
[1745862407171,9.005,1770.2,1769.7,0.52014451]
[1745862407582,6.005,1770.2,1769.8,0.52014451]
[1745862408290,6.005,1770.2,1769.7,5.65067112]
[1745862409406,6.005,1770.2,1769.8,0.52165699]
[1745862409783,0.6005,1770.1,1769.8,0.52165699]
[1745862410000,0.6005,1770.1,1769.7,5.65064199]
[1745862410501,6.005,1770.2,1769.5,0.55]
[1745862410739,6.005,1770.2,1769.7,5.65054524]
[1745862410944,6.05,1770.3,1769.9,5.64990977]
[1745862411133,5.401,1770.1,1769.9,5.64990977]
[1745862411449,5.401,1770.1,1770.0,0.52203791]
[1745862412507,5.376,1770.1,1770.0,6.17175542]
[1745862412738,5.376,1770.1,1770.0,0.52203791]
[1745862413045,5.376,1770.1,1770.0,1.04450441]
[1745862413241,5.376,1770.1,1770.0,6.69422192]
[1745862413610,5.376,1770.1,1770.0,8.00850909]
[1745862414131,0.306,1770.4,1770.1,5.64918545]
[1745862414336,5.64528458,1771.4,1770.1,5.64918545]
[1745862414337,5.376,1770.3,1770.1,5.64918545]
[1745862414534,5.376,1770.3,1770.2,0.52203791]
[1745862415051,5.376,1770.3,1770.2,1.04450441]
[1745862416710,5.376,1770.4,1770.2,1.04450441]
[1745862417024,5.376,1770.4,1770.3,0.52203791]
[1745862419052,5.376,1770.4,1770.0,5.64950344]
[1745862419251,5.376,1770.4,1770.0,6.85932007]
[1745862419452,5.376,1770.4,1770.1,0.52261765]
[1745862420033,5.376,1770.4,1769.7,12.07513816]
[1745862420236,5.376,1770.4,1769.7,6.4246657]
[1745862420465,5.376,1770.4,1769.8,5.65024944]
[1745862420833,0.306,1770.3,1769.9,1.04534031]
[1745862421038,0.8742,1770.3,1769.9,1.04534031]
[1745862421531,0.8742,1770.3,1770.0,0.52266436]
[1745862421733,0.8742,1770.3,1769.9,0.52267595]
[1745862422146,0.8742,1770.3,1769.7,12.07526251]
[1745862423173,0.8742,1770.3,1769.8,5.6503367]
[1745862423471,0.8742,1770.3,1769.8,0.52292086]
[1745862423675,0.8742,1770.3,1769.8,6.17327651]
[1745862423831,0.8742,1770.3,1769.8,7.43306869]
[1745862424036,0.8742,1770.3,1769.9,0.52292086]
[1745862424350,6.9242,1770.3,1769.9,0.52292086]
[1745862424547,12.5142083,1770.3,1769.6,0.52292086]
[1745862425272,3.0,1770.2,1769.7,0.52292086]
[1745862425476,0.3,1770.1,1769.7,0.52292086]
[1745862425791,5.376,1770.0,1769.6,0.52292086]
[1745862426081,5.376,1770.0,1769.5,0.7668]
[1745862426279,5.376,1770.0,1769.5,6.41808292]
[1745862426646,5.376,1770.0,1769.5,0.7668]
[1745862426859,0.306,1769.9,1769.4,5.65142123]
[1745862427059,0.306,1769.9,1769.5,0.52319011]
[1745862427587,0.306,1769.9,1769.6,0.52319011]
[1745862427758,0.306,1769.9,1769.5,0.52319011]
[1745862427955,0.306,1769.9,1769.5,6.17424822]
[1745862428151,5.376,1770.0,1769.6,5.65089117]
[1745862428496,5.376,1770.0,1769.7,5.65048937]
[1745862428645,5.376,1770.0,1769.8,5.65030029]
[1745862428851,5.376,1770.0,1769.8,5.65022351]
[1745862429049,5.376,1770.0,1769.8,5.65015551]
[1745862429263,5.376,1770.0,1769.9,0.52263174]
[1745862429512,5.376,1770.0,1769.9,1.13990977]
[1745862429645,5.376,1770.0,1769.9,6.78994649]
[1745862430144,5.376,1770.2,1770.1,5.64929949]
[1745862430346,0.306,1770.5,1770.1,11.29848795]
[1745862430557,5.376,1770.5,1770.2,7.57505806]
[1745862430878,5.376,1770.5,1770.2,1.9261488]
[1745862431074,5.376,1770.5,1770.2,7.57520181]
[1745862431651,5.376,1770.5,1770.2,1.1298488]
[1745862431846,5.376,1770.5,1770.1,5.64921964]
[1745862432347,5.376,1770.5,1770.2,0.52259106]
[1745862432552,5.376,1770.5,1770.2,6.17159949]
[1745862432987,5.376,1770.5,1770.1,5.64916133]
[1745862433370,5.376,1770.5,1770.2,5.64907788]
[1745862433571,5.376,1770.5,1770.2,6.7789018]
[1745862434987,5.376,1770.5,1770.1,11.29838247]
[1745862435317,5.376,1770.5,1770.2,5.64897969]
[1745862435611,5.376,1770.5,1770.2,6.17091141]
[1745862435788,5.376,1770.5,1770.2,0.52193172]
[1745862435993,5.376,1770.5,1770.1,5.64916133]
[1745862436188,5.376,1770.5,1770.2,6.21384989]
[1745862436725,5.376,1770.5,1770.2,0.56491613]
[1745862437077,5.376,1770.5,1770.2,6.21397566]
[1745862437508,5.376,1770.5,1770.2,0.56491613]
[1745862438490,5.376,1770.5,1770.0,6.99588058]
[1745862438679,5.376,1770.5,1770.1,5.64934687]
[1745862438882,5.376,1770.5,1770.1,11.29852983]
[1745862439185,5.376,1770.5,1770.2,6.17100402]
[1745862439383,5.376,1770.5,1770.2,6.17085875]
[1745862439615,5.376,1770.5,1770.2,5.64892634]
[1745862440326,5.376,1770.5,1770.0,6.99589149]
[1745862440542,5.53838655,1771.5,1770.2,0.829]
[1745862440878,10.91338655,1771.5,1770.7,5.64737051]
[1745862441175,10.91338655,1771.5,1770.8,6.16842943]
[1745862441355,10.91338655,1771.5,1771.0,5.64646054]
[1745862441559,10.91338655,1771.5,1771.1,5.64595116]
[1745862441560,5.375,1771.4,1771.1,5.64595116]
[1745862441749,5.375,1771.4,1771.1,5.64594368]
[1745862442086,5.375,1771.4,1771.2,5.64587478]
[1745862442578,5.375,1771.4,1771.2,5.6456986]
[1745862444487,5.375,1771.4,1771.2,11.29140174]
[1745862444688,5.339,1771.4,1771.2,5.64567024]
[1745862445273,5.339,1771.4,1771.3,5.64557104]
[1745862445885,5.339,1771.4,1771.2,6.21026603]
[1745862446242,5.339,1771.4,1771.0,1.32124605]
[1745862446566,5.339,1771.4,1771.1,5.6461705]
[1745862446777,5.339,1771.4,1770.8,5.64715939]
[1745862446778,5.339,1771.4,1771.2,5.64570282]
[1745862447087,5.339,1771.4,1771.1,5.64601628]
[1745862447258,5.339,1771.4,1771.2,5.64588352]
[1745862448487,5.339,1771.4,1771.3,5.64557104]
[1745862448860,10.87638655,1771.5,1771.3,5.64557104]
[1745862449486,10.87638655,1771.5,1771.2,5.64566807]
[1745862449793,10.87638655,1771.5,1771.3,5.6455698]
[1745862449951,10.87638655,1771.5,1771.2,12.42050701]
[1745862450149,5.53838655,1771.5,1771.3,5.64554031]
[1745862450353,5.23238655,1771.5,1771.4,5.64525234]
[1745862450553,5.23238655,1771.5,1771.3,5.64536802]
[1745862450755,5.23238655,1771.5,1771.3,6.77448191]
[1745862450953,5.23238655,1771.5,1771.1,6.19620857]
[1745862451192,5.23238655,1771.5,1771.3,5.64531365]
[1745862452152,5.23238655,1771.5,1771.4,5.64525234]
[1745862452584,5.23238655,1771.5,1771.3,5.64531365]
[1745862452892,5.23238655,1771.5,1771.4,5.64525234]
[1745862453092,5.23238655,1771.5,1771.4,6.77430894]
[1745862453386,5.23238655,1771.5,1771.4,7.52640894]
[1745862454895,5.23238655,1771.5,1771.4,1.1290566]
[1745862455189,5.23238655,1771.5,1771.2,5.64566215]
[1745862455499,5.23238655,1771.5,1771.3,5.64538251]
[1745862455866,5.23238655,1771.5,1771.2,5.64568609]
[1745862456095,0.306,1771.4,1770.9,6.41132946]
[1745862456295,0.306,1771.4,1771.0,5.64640729]
[1745862456496,5.337,1771.3,1771.1,0.56464073]
[1745862457009,5.337,1771.3,1771.1,6.21074671]
[1745862457160,5.337,1771.3,1771.1,6.2107197]
[1745862457588,5.337,1771.3,1771.1,0.56464073]
[1745862457861,5.337,1771.3,1770.9,12.05793254]
[1745862458061,5.337,1771.3,1771.0,5.64640893]
[1745862458290,5.337,1771.3,1771.0,11.29274509]
[1745862459100,5.337,1771.3,1771.0,5.64633616]
[1745862459705,5.337,1771.3,1770.7,6.41087791]
[1745862459882,5.337,1771.3,1770.8,5.64698241]
[1745862460060,5.337,1771.3,1770.8,5.64695454]
[1745862460266,5.337,1771.3,1770.7,6.28834471]
[1745862460267,0.306,1771.2,1770.7,6.28834471]
[1745862460468,0.306,1771.2,1770.7,0.64108779]
[1745862460664,0.306,1771.2,1770.5,6.45874475]
[1745862460971,0.306,1771.2,1770.6,5.64779623]
[1745862461573,0.306,1771.2,1770.6,11.29548889]
[1745862461775,0.306,1771.2,1770.6,5.64760463]
[1745862461983,0.306,1771.2,1770.7,5.64748378]
[1745862462314,0.306,1771.2,1770.8,5.64697748]
[1745862462605,0.306,1771.2,1770.7,6.77699262]
[1745862462770,0.306,1771.2,1770.6,5.64766956]
[1745862463110,0.306,1771.2,1770.6,5.64757709]
[1745862463808,0.306,1771.2,1770.5,11.29590821]
[1745862464005,0.306,1771.2,1770.6,5.64768138]
[1745862464896,0.306,1771.2,1770.6,5.64763708]
[1745862465063,1.42930083,1771.2,1770.6,6.21240079]
[1745862465263,1.42930083,1771.2,1770.8,5.64715845]
[1745862465467,5.337,1771.1,1770.7,5.64732207]
[1745862465971,5.337,1771.1,1770.8,5.64703035]
[1745862466367,5.337,1771.1,1770.6,6.21236959]
[1745862468100,0.306,1771.0,1770.6,0.56476371]
[1745862468434,0.306,1771.0,1770.6,6.21240501]
[1745862468595,0.306,1771.0,1770.6,6.21234675]
[1745862469047,0.306,1771.0,1770.7,5.64744124]
[1745862470553,0.306,1771.0,1770.8,5.64707721]
[1745862470703,5.337,1771.0,1770.9,6.21155395]
[1745862471012,5.337,1771.0,1770.9,0.56470772]
[1745862471901,5.337,1771.0,1770.6,0.56476371]
[1745862472098,5.337,1771.0,1770.6,6.21246432]
[1745862472422,5.337,1771.0,1770.6,6.21233844]
[1745862472937,5.337,1771.0,1770.7,5.64745855]
[1745862473138,5.337,1771.0,1770.7,5.64744641]
[1745862473308,5.337,1771.0,1770.7,6.83342466]
[1745862473513,5.337,1771.0,1770.7,6.83332168]
[1745862473745,5.337,1771.0,1770.7,6.83323862]
[1745862474033,5.337,1771.0,1770.8,5.64712805]
[1745862474758,5.337,1771.0,1770.7,6.83323862]
[1745862475312,5.337,1771.0,1770.8,5.6471626]
[1745862475516,0.306,1771.2,1770.8,5.6471626]
[1745862475517,0.306,1771.2,1770.9,5.64672942]
[1745862475711,5.245,1770.9,1770.8,5.64708618]
[1745862476150,5.245,1770.9,1770.8,6.16813776]
[1745862476652,5.245,1770.9,1770.8,5.64708618]
[1745862476947,5.245,1770.9,1770.8,6.77652838]
[1745862478523,5.245,1770.9,1770.8,7.2974874]
[1745862479438,5.245,1770.9,1770.8,6.77652838]
[1745862481259,5.245,1770.9,1770.8,7.29763413]
[1745862481614,16.951,1771.3,1771.0,5.64652738]
[1745862481615,5.246,1771.1,1771.0,5.64652738]
[1745862481824,5.246,1771.1,1770.8,7.2975159]
[1745862482051,5.246,1771.1,1770.9,0.72975159]
[1745862482261,5.246,1771.1,1770.9,6.37644629]
[1745862482455,5.246,1771.1,1770.9,6.37638145]
[1745862483156,5.246,1771.1,1771.0,5.64652738]
[1745862483615,5.246,1771.1,1770.9,6.37638145]
[1745862484039,5.246,1771.1,1770.9,12.02301769]
[1745862484252,5.246,1771.1,1771.0,5.64652738]
[1745862484420,5.246,1771.1,1771.0,6.84881826]
[1745862484918,16.951,1771.3,1771.0,6.84881826]
[1745862485118,5.245,1771.2,1771.0,6.84881826]
[1745862486459,5.245,1771.2,1771.0,6.84865623]
[1745862486642,16.951,1771.3,1771.0,6.8486528]
[1745862486841,22.196,1771.3,1771.1,6.16764017]
[1745862487053,22.196,1771.3,1771.2,5.64588979]
[1745862487428,22.196,1771.3,1771.1,6.16764017]
[1745862487623,22.196,1771.3,1771.1,5.64599309]
[1745862488359,22.196,1771.3,1771.0,5.64632491]
[1745862488657,22.196,1771.3,1771.1,5.64620032]
[1745862489458,5.23238655,1771.5,1771.2,5.64588979]
[1745862489683,10.47738655,1771.5,1771.2,5.64588979]
[1745862490746,10.47738655,1771.5,1771.3,5.64556098]
[1745862491488,10.47738655,1771.5,1771.2,5.64566517]
[1745862491661,10.47738655,1771.5,1771.2,11.29133492]
[1745862491846,10.47738655,1771.5,1771.3,5.64556088]
[1745862493184,10.47738655,1771.5,1771.2,5.64566517]
[1745862493405,10.47738655,1771.5,1771.2,11.29140409]
[1745862493582,10.47738655,1771.5,1771.2,5.64566517]
[1745862494784,10.47738655,1771.5,1771.2,11.2913449]
[1745862494980,10.47738655,1771.5,1771.3,5.64546598]
[1745862495161,10.47738655,1771.5,1771.3,5.64556327]
[1745862495563,10.47738655,1771.5,1771.3,5.64535472]
[1745862496583,10.47738655,1771.5,1771.1,5.64601387]
[1745862496788,3.01500976,1771.4,1771.0,5.64637741]
[1745862497154,3.01500976,1771.4,1770.9,6.47113084]
[1745862497360,3.01500976,1771.4,1771.0,5.64652051]
[1745862497667,3.01500976,1771.4,1770.9,12.117761]
[1745862497863,0.306,1771.3,1770.9,5.64663016]
[1745862498691,0.306,1771.3,1771.0,5.64651822]
[1745862498887,0.306,1771.3,1770.9,5.64671997]
[1745862499192,0.306,1771.3,1771.0,5.64638023]
[1745862501698,0.306,1771.3,1770.9,5.64666748]
[1745862502062,0.63810098,1771.3,1770.7,6.42432769]
[1745862502258,10.47738655,1771.5,1770.8,5.64689735]
[1745862502259,13.78338655,1771.5,1770.8,5.64689735]
[1745862502462,16.79839631,1771.5,1771.0,5.64638766]
[1745862503086,16.79839631,1771.5,1770.8,5.64697712]
[1745862503292,3.01500976,1771.3,1770.8,5.64713907]
[1745862503591,0.306,1771.2,1770.9,5.64672852]
[1745862503793,5.245,1771.1,1771.0,5.64652738]
[1745862504004,5.245,1771.1,1771.0,7.29775546]
[1745862504518,5.245,1771.2,1771.1,5.64620857]
[1745862504904,5.156,1771.4,1771.3,5.64529128]
[1745862505803,10.38838655,1771.5,1771.4,5.64525234]
[1745862508135,5.23238655,1771.5,1771.4,5.64525234]
[1745862508280,5.23238655,1771.5,1771.4,6.7743067]
[1745862508478,5.23238655,1771.5,1771.4,7.29570284]
[1745862511987,5.53838655,1771.5,1771.4,0.52139614]
[1745862512639,5.23238655,1771.5,1771.4,0.52139614]
[1745862512848,5.23238655,1771.5,1771.2,5.64579523]
[1745862513013,5.23238655,1771.5,1771.0,0.7625]
[1745862513342,5.23238655,1771.5,1771.2,5.64572427]
[1745862513904,5.23238655,1771.5,1771.2,5.64571391]
[1745862514106,5.23238655,1771.5,1771.2,5.64568001]
[1745862514297,5.23238655,1771.5,1771.0,0.7625]
[1745862514518,5.23238655,1771.5,1771.2,5.64571605]
[1745862515240,5.23238655,1771.5,1771.2,11.29137936]
[1745862515438,5.23238655,1771.5,1771.2,5.64566331]
[1745862515735,5.23238655,1771.5,1771.1,5.64602565]
[1745862516199,0.306,1771.4,1771.1,5.64602565]
[1745862516837,5.23238655,1771.5,1771.3,5.6455285]
[1745862517142,5.23238655,1771.5,1771.2,11.29142126]
[1745862517340,5.23238655,1771.5,1771.2,5.64569945]
[1745862517501,5.23238655,1771.5,1771.2,11.29143372]
[1745862517696,5.23238655,1771.5,1771.2,5.64569945]
[1745862517915,5.23238655,1771.5,1771.1,6.77525924]
[1745862518417,5.23238655,1771.5,1771.2,5.64575021]
[1745862518739,5.23238655,1771.5,1771.2,5.64570721]
[1745862519037,5.23238655,1771.5,1771.2,11.29136954]
[1745862519637,5.23238655,1771.5,1771.2,5.64566233]
[1745862519841,5.23238655,1771.5,1771.2,11.29132905]
[1745862520553,5.23238655,1771.5,1771.2,5.64566233]
[1745862521052,5.23238655,1771.5,1771.2,11.29133277]
[1745862521450,5.23238655,1771.5,1771.2,5.64566233]
[1745862522351,5.23238655,1771.5,1771.2,6.85407958]
[1745862522509,5.23238655,1771.5,1771.2,12.49975017]
[1745862523028,5.23238655,1771.5,1771.2,6.85407958]
[1745862523241,5.23238655,1771.5,1771.2,12.49974852]
[1745862523466,5.23238655,1771.5,1771.3,5.64554606]
[1745862523809,5.156,1771.4,1771.3,5.64554606]
[1745862524447,5.156,1771.4,1771.3,6.89550862]
[1745862524744,5.156,1771.4,1771.3,7.41692593]
[1745862526415,5.156,1771.4,1771.3,7.41674953]
[1745862527203,5.156,1771.4,1771.3,6.16678697]
[1745862530316,5.23238655,1771.5,1771.4,5.64525234]
[1745862530735,5.23238655,1771.5,1771.4,6.16666965]
[1745862530910,5.23238655,1771.5,1771.4,6.91976965]
[1745862537752,8.24739631,1771.5,1771.4,0.52141731]
[1745862537954,5.23238655,1771.5,1771.4,0.52141731]
[1745862538123,5.23238655,1771.5,1771.2,6.16722018]
[1745862538450,5.23238655,1771.5,1771.3,5.64551661]
[1745862540369,5.23238655,1771.5,1771.3,5.64535048]
[1745862540665,5.23238655,1771.5,1771.4,6.45545234]
[1745862541066,5.23238655,1771.5,1771.4,6.97723481]
[1745862547933,5.23238655,1771.5,1771.4,6.16703481]
[1745862548523,5.23238655,1771.5,1771.4,0.52178247]
[1745862548928,5.23238655,1771.5,1771.4,6.16703481]
[1745862550228,5.23238655,1771.5,1771.4,7.3482659]
[1745862553006,5.23238655,1771.5,1771.4,0.52178247]
[1745862554412,5.23238655,1771.5,1771.4,6.16703481]
[1745862554612,5.23238655,1771.5,1771.4,0.52178247]
[1745862554819,5.53838655,1771.5,1771.4,0.52178247]
[1745862555621,5.53838655,1771.5,1771.3,5.64556381]
[1745862556834,5.53838655,1771.5,1771.4,0.1]
[1745862558431,9.61163496,1771.5,1771.4,0.1]
[1745862558747,8.55339631,1771.5,1771.4,0.1]
[1745862558937,5.53838655,1771.5,1771.4,0.1]
[1745862560648,8.55339631,1771.5,1771.4,0.1]
[1745862560849,17.60339631,1771.5,1771.4,0.1]
[1745862562856,18.02061377,1771.5,1771.4,0.1]
[1745862563053,20.32707515,1771.5,1771.4,0.1]
[1745862565052,22.35706539,1771.5,1771.4,0.1]
[1745862565228,25.37207515,1771.5,1771.4,0.1]
[1745862568054,24.95485769,1771.5,1771.4,0.1]
[1745862568267,22.64839631,1771.5,1771.4,0.1]
[1745862570543,22.34239631,1771.5,1771.4,0.1]
[1745862575778,22.64839631,1771.5,1771.4,0.1]
[1745862579787,39.59939631,1771.5,1771.4,0.1]
[1745862583710,5.23238655,1771.5,1771.4,5.74525234]
[1745862583920,5.23238655,1771.5,1771.4,1.31566785]
[1745862584119,5.23238655,1771.5,1771.4,0.1]
[1745862592595,11.28238655,1771.5,1771.4,0.1]
[1745862595110,11.28238655,1771.5,1770.4,0.8143]
[1745862595111,3.306,1771.4,1770.4,0.8143]
[1745862595419,3.306,1771.4,1770.5,0.52442616]
[1745862595420,3.01500976,1770.8,1770.5,0.52442616]
[1745862595623,7.99700976,1770.8,1770.4,0.8143]
[1745862595931,4.982,1770.8,1770.4,7.10883646]
[1745862596143,4.982,1770.8,1770.5,5.64801666]
[1745862596430,4.982,1770.8,1770.6,5.64778639]
[1745862596637,4.982,1770.8,1770.5,5.64793286]
[1745862597521,7.99700976,1770.8,1770.5,5.64811718]
[1745862598915,14.04700976,1770.8,1770.5,5.64811718]
[1745862599110,14.04700976,1770.8,1770.1,0.7807]
[1745862599111,3.01500976,1770.6,1770.1,0.7807]
[1745862599315,3.0,1770.5,1770.1,0.7807]
[1745862599511,4.982,1770.4,1770.1,0.7807]
[1745862600140,4.982,1770.4,1770.1,6.42999212]
[1745862600347,4.982,1770.4,1770.1,1.98865835]
[1745862600641,4.982,1770.4,1770.3,6.42386009]
[1745862601542,4.84516688,1770.8,1770.3,6.42386009]
[1745862601543,4.983,1770.8,1770.6,5.64768232]
[1745862601919,4.983,1770.8,1770.6,5.64754095]
[1745862604421,4.983,1770.8,1770.7,5.64748404]
[1745862604751,4.983,1770.8,1770.7,6.40218404]
[1745862605049,16.951,1770.9,1770.7,7.60715654]
[1745862605256,4.983,1771.0,1770.8,6.40186512]
[1745862605455,4.983,1771.0,1770.9,5.64684623]
[1745862607161,4.983,1771.0,1770.8,6.40167964]
[1745862607450,4.983,1771.0,1770.9,5.64684623]
[1745862607648,4.983,1771.0,1770.8,6.40165849]
[1745862607837,4.983,1771.0,1770.8,0.7547]
[1745862608061,4.983,1771.0,1770.9,5.64684623]
[1745862610446,4.983,1771.0,1770.8,0.7547]
[1745862610629,4.983,1771.0,1770.9,5.64684623]
[1745862611769,5.23238655,1771.5,1771.0,0.8027]
[1745862611914,5.23238655,1771.5,1771.4,5.64525234]
[1745862612117,5.23238655,1771.5,1771.3,0.7854]
[1745862612334,5.23238655,1771.5,1771.3,6.43070526]
[1745862612559,10.21538655,1771.5,1771.3,6.43070526]
[1745862612716,10.21538655,1771.5,1771.3,0.7854]
[1745862612917,10.21538655,1771.5,1771.3,6.43075726]
[1745862613357,10.21538655,1771.5,1771.4,5.64525234]
[1745862613558,10.21538655,1771.5,1771.3,6.43075726]
[1745862613855,11.53842618,1771.5,1771.2,5.64576705]
[1745862614361,11.53842618,1771.5,1771.2,11.29139931]
[1745862614659,11.53842618,1771.5,1771.2,5.64567796]
[1745862615155,11.53842618,1771.5,1771.2,11.29138173]
[1745862615558,11.53842618,1771.5,1771.2,5.64567796]
[1745862615938,10.21538655,1771.5,1771.4,5.64525234]
[1745862616256,10.21538655,1771.5,1771.3,5.6454344]
[1745862616455,10.21538655,1771.5,1771.4,5.64525234]
[1745862616757,10.21538655,1771.5,1771.3,5.64535852]
[1745862616958,10.21538655,1771.5,1771.3,11.29070767]
[1745862617155,10.21538655,1771.5,1771.4,5.64525234]
[1745862618074,10.21538655,1771.5,1771.4,6.46265234]
[1745862618868,10.21538655,1771.5,1771.3,5.64534111]
[1745862619178,11.53842618,1771.5,1771.4,5.64525234]
[1745862619741,10.21538655,1771.5,1771.4,5.64525234]
[1745862621637,5.23238655,1771.5,1771.4,7.01635234]
[1745862622080,12.06500976,1772.1,1772.0,5.64334085]
[1745862622246,12.06500976,1772.1,1771.9,5.64358487]
[1745862622247,17.04700976,1772.1,1771.9,5.64358487]
[1745862622673,6.01500976,1772.1,1772.0,5.64334085]
[1745862622839,10.99700976,1772.1,1772.0,5.64334085]
[1745862623034,6.05,1772.2,1772.1,5.6430224]
[1745862623312,0.005,1772.3,1772.2,5.64270398]
[1745862624385,0.005,1772.3,1772.2,6.45110398]
[1745862624585,0.35818318,1772.5,1772.2,7.00110398]
[1745862624747,0.31318318,1772.5,1772.4,5.64206725]
[1745862628950,0.31318318,1772.5,1772.4,6.44416725]
[1745862629350,0.31318318,1772.5,1772.4,8.20280906]
[1745862629575,0.05,1772.9,1772.6,5.64129256]
[1745862629748,0.005,1773.2,1773.0,6.44214254]
[1745862629964,0.005,1773.2,1773.0,6.44211659]
[1745862630164,0.53226526,1774.0,1773.6,5.63807917]
[1745862630501,8.10100976,1773.9,1773.5,0.8139]
[1745862630722,3.01500976,1773.7,1773.1,0.8139]
[1745862631010,5.036,1773.6,1773.4,5.63857542]
[1745862631164,0.306,1774.0,1773.7,5.63771649]
[1745862631366,6.05,1774.3,1773.7,5.63770836]
[1745862631367,5.035,1773.9,1773.7,5.63770836]
[1745862631578,3.0,1774.0,1773.7,5.63775706]
[1745862631787,7.834,1774.1,1773.7,5.63775706]
[1745862631978,5.8184,1774.0,1773.7,5.63775706]
[1745862632394,5.8184,1774.0,1773.6,0.7844]
[1745862632578,3.01500976,1773.9,1773.4,6.97323432]
[1745862632784,3.01500976,1773.9,1773.4,6.97306454]
[1745862633009,3.89835074,1773.9,1773.4,0.7844]
[1745862633580,0.88334098,1773.9,1773.4,0.7844]
[1745862633802,0.306,1773.8,1773.2,0.7844]
[1745862634211,0.306,1773.8,1773.2,6.42387731]
[1745862634384,0.306,1773.8,1773.2,0.7844]
[1745862634583,1.88663797,1773.8,1773.2,0.7844]
[1745862634910,5.56703873,1773.7,1772.9,0.7844]
[1745862635090,5.034,1773.6,1773.0,5.64014733]
[1745862636778,5.034,1773.6,1773.0,5.64012417]
[1745862637119,5.87303873,1773.5,1772.9,0.7844]
[1745862637279,0.58730387,1773.4,1772.9,0.7844]
[1745862637478,6.63730387,1773.4,1772.9,0.7844]
[1745862638103,6.63730387,1773.4,1772.7,6.41739496]
[1745862638289,6.63730387,1773.4,1772.8,5.64068012]
[1745862638614,6.63730387,1773.4,1772.8,5.64062394]
[1745862638784,0.66373039,1773.3,1772.8,5.64062394]
[1745862638984,0.306,1773.1,1772.7,0.7765]
[1745862639717,0.306,1773.1,1772.5,6.43938302]
[1745862640005,6.356,1773.1,1772.5,6.43938302]
[1745862640208,6.356,1773.1,1772.6,5.64141076]
[1745862640411,0.6356,1773.0,1772.6,5.64141076]
[1745862642724,0.6356,1773.0,1772.6,11.28242835]
[1745862642903,0.6356,1773.0,1772.6,5.64121298]
[1745862644217,0.6356,1773.0,1772.7,5.64094653]
[1745862644411,6.356,1773.1,1772.8,5.64061163]
[1745862644919,6.356,1773.1,1772.9,5.64046896]
[1745862645125,5.033,1773.3,1773.0,6.3971139]
[1745862645308,5.033,1773.3,1773.2,5.63952176]
[1745862645485,5.033,1773.5,1773.2,5.63934496]
[1745862645815,5.033,1773.5,1773.2,5.63934139]
[1745862646386,0.306,1773.4,1772.8,0.8285]
[1745862646582,6.356,1773.4,1772.9,5.64035095]
[1745862646792,6.356,1773.4,1772.9,5.64031102]
[1745862647200,6.356,1773.4,1773.0,5.64001813]
[1745862647510,7.71458,1773.4,1773.0,5.63995911]
[1745862647822,7.71458,1773.4,1773.0,5.63993845]
[1745862648020,7.71458,1773.4,1773.1,5.63981043]
[1745862649218,7.71458,1773.4,1773.1,11.27944567]
[1745862649419,6.356,1773.4,1773.2,5.63946803]
[1745862649725,5.033,1773.3,1773.2,6.44429689]
[1745862651289,23.291,1773.6,1773.4,5.63860188]
[1745862651493,5.033,1773.5,1773.4,5.63860188]
[1745862652989,5.033,1773.5,1773.3,5.63906096]
[1745862653424,5.033,1773.5,1773.3,5.63903453]
[1745862653718,5.033,1773.5,1773.2,6.44440099]
[1745862653922,7.8348,1773.5,1773.2,5.63940099]
[1745862654221,7.8348,1773.5,1773.3,5.63919122]
[1745862654409,5.033,1773.5,1773.3,5.63920149]
[1745862655206,5.033,1773.5,1773.1,5.63983982]
[1745862655430,5.033,1773.5,1773.3,5.6391582]
[1745862655622,5.033,1773.5,1773.2,11.27889048]
[1745862655825,5.033,1773.5,1773.2,5.63932458]
[1745862656104,5.033,1773.5,1773.3,5.63916816]
[1745862656599,5.033,1773.5,1773.2,11.27863088]
[1745862657032,5.033,1773.5,1773.3,5.63910937]
[1745862657735,5.033,1773.5,1773.2,5.63936808]
[1745862657928,5.033,1773.5,1773.2,11.27866179]
[1745862658332,7.2298,1773.5,1773.2,5.63929371]
[1745862658641,7.5358,1773.5,1773.2,5.63937017]
[1745862659207,7.5358,1773.5,1773.2,11.27873262]
[1745862659506,5.339,1773.5,1773.3,5.63919216]
[1745862661409,5.339,1773.5,1773.2,5.63936245]
[1745862661941,5.033,1773.5,1773.3,5.63905266]
[1745862662147,5.033,1773.5,1773.4,5.63888575]
[1745862662347,16.935,1773.6,1773.5,5.6385678]
[1745862662528,21.97,1773.6,1773.5,5.6385678]
[1745862663147,5.035,1773.6,1773.5,5.6385678]
[1745862663357,5.035,1773.6,1773.5,6.76631316]
[1745862665953,5.035,1773.8,1773.7,6.45672174]
[1745862666554,5.035,1773.8,1773.7,5.63782174]
[1745862667018,7.834,1774.1,1773.5,7.5852079]
[1745862667230,7.834,1774.1,1774.0,6.18697857]
[1745862667421,7.834,1774.1,1774.0,8.74499609]